bitfinex-derivatives/quotes_SOLF0:USTF0_20241211
["timestamp","ask_amount","ask_price","bid_price","bid_amount"]
[1733898001680,7.03302126,219.16,219.15,2.22]
[1733898001879,11.37025262,219.16,219.15,2.22]
[1733898003081,11.37025262,219.16,219.07,7.03302126]
[1733898003283,7.03302126,219.13,219.08,2.22]
[1733898003486,4.33723136,219.12,219.08,2.22]
[1733898003687,4.33723136,219.11,219.09,2.22]
[1733898003893,4.33723136,219.1,219.09,2.22]
[1733898004680,4.33723136,219.1,219.09,4.5011]
[1733898004881,7.03302126,219.13,219.09,2.22]
[1733898005192,4.33684192,219.12,219.09,2.22]
[1733898005381,11.36986318,219.11,219.1,2.22]
[1733898008092,7.03302126,219.11,219.1,2.22]
[1733898008385,4.33536797,219.11,219.1,4.501]
[1733898011290,7.03302126,219.15,219.1,2.22]
[1733898011799,4.33499846,219.14,219.1,2.22]
[1733898012094,4.33499846,219.13,219.11,2.2809]
[1733898012394,4.33499846,219.12,219.11,2.2809]
[1733898012591,4.33499846,219.12,219.11,4.4409]
[1733898014388,4.33499846,219.12,219.08,7.03302126]
[1733898014597,4.33450336,219.11,219.09,2.281]
[1733898014790,4.33450336,219.1,219.09,2.281]
[1733898016695,4.33450336,219.1,219.09,2.16]
[1733898021000,4.33013047,219.1,219.09,2.16]
[1733898023502,4.33013047,219.1,219.08,2.16]
[1733898023702,11.36315173,219.09,219.08,2.16]
[1733898024301,11.36189265,219.09,219.08,2.16]
[1733898025302,11.36189265,219.09,219.07,2.16]
[1733898025602,4.32887139,219.08,219.07,2.16]
[1733898028205,6.61007139,219.08,219.07,2.16]
[1733898028712,6.60759373,219.08,219.07,2.16]
[1733898028910,2.2814,219.06,219.04,2.16]
[1733898029108,11.35941499,219.05,219.04,2.16]
[1733898030106,11.35941499,219.05,218.99,5.35530324]
[1733898030308,4.32639373,219.04,219.0,2.16]
[1733898030510,4.32639373,219.03,219.0,2.16]
[1733898030712,4.32639373,219.02,219.0,2.16]
[1733898030912,4.32639373,219.01,219.0,4.442]
[1733898031510,4.32639373,219.01,219.0,2.282]
[1733898031710,4.32639373,219.01,219.0,4.442]
[1733898032406,4.32639373,219.01,218.79,13.7052]
[1733898032606,4.32639373,219.0,218.94,7.03302126]
[1733898032811,4.32639373,218.99,218.95,2.16]
[1733898033014,4.32639373,218.98,218.95,2.16]
[1733898033217,4.32639373,218.97,218.95,2.16]
[1733898033413,7.03302126,219.01,218.95,4.4425]
[1733898033414,4.32639373,218.96,218.95,4.4425]
[1733898033913,7.03302126,219.01,218.95,4.4425]
[1733898034114,4.32565738,219.0,218.95,4.4425]
[1733898034314,7.03302126,219.01,218.95,2.2825]
[1733898034315,4.32565738,218.99,218.95,2.2825]
[1733898034518,4.32565738,218.98,218.96,2.16]
[1733898034715,4.32565738,218.97,218.96,2.16]
[1733898036410,4.32565738,218.97,218.96,4.4424]
[1733898036616,38.23488571,219.16,218.96,9.19302126]
[1733898036812,7.03302126,219.06,218.98,7.03302126]
[1733898037018,2.7534,219.13,219.0,7.03302126]
[1733898037223,2.7534,219.13,219.04,2.2816]
[1733898037421,7.03302126,219.08,219.04,2.2816]
[1733898048523,7.03302126,219.08,219.05,2.14]
[1733898048828,7.03302126,219.06,219.05,2.14]
[1733898051432,7.03302126,219.06,219.01,2.2819]
[1733898051734,7.03302126,219.06,219.02,2.14]
[1733898052626,7.03302126,219.06,219.02,4.4218]
[1733898056229,2.2811,219.09,219.04,2.2816]
[1733898056426,7.03302126,219.08,219.04,2.2816]
[1733898058130,7.03302126,219.06,218.96,7.03302126]
[1733898058322,7.03302126,219.04,218.97,2.14]
[1733898058729,7.03302126,219.04,218.98,2.14]
[1733898058926,7.03302126,219.04,218.99,2.2821]
[1733898061626,7.03302126,219.04,219.0,2.282]
[1733898061827,7.03302126,219.04,219.01,2.14]
[1733898062032,7.03302126,219.06,219.01,2.14]
[1733898062528,7.03302126,219.06,219.02,2.2818]
[1733898066238,7.03302126,219.06,219.01,4.4219]
[1733898066931,7.03302126,219.02,218.8,2.14]
[1733898067131,7.03302126,219.02,218.84,7.03302126]
[1733898067132,7.03302126,218.92,218.84,7.03302126]
[1733898067637,7.03302126,218.92,218.85,2.14]
[1733898068228,7.03302126,218.92,218.86,2.14]
[1733898069134,7.03302126,218.9,218.86,2.14]
[1733898069536,2.14,218.98,218.86,2.14]
[1733898069738,7.03302126,218.91,218.86,2.14]
[1733898071444,7.03302126,218.89,218.86,2.14]
[1733898075036,7.03302126,218.87,218.81,2.2839]
[1733898075341,7.03302126,218.85,218.81,2.12]
[1733898075540,7.03302126,218.83,218.79,2.12]
[1733898075739,7.03302126,218.81,218.55,6.21339695]
[1733898076043,7.03302126,218.81,218.73,7.03302126]
[1733898076540,7.03302126,218.79,218.73,7.03302126]
[1733898076740,7.03302126,218.79,218.74,2.12]
[1733898080047,7.03302126,218.79,218.74,4.4047]
[1733898080742,4.2359,218.87,218.74,2.12]
[1733898080743,2.2836,218.86,218.74,2.12]
[1733898080942,7.03302126,218.81,218.74,2.12]
[1733898081944,7.03302126,218.85,218.77,7.03302126]
[1733898082139,7.03302126,218.85,218.81,2.2839]
[1733898082340,7.03302126,218.85,218.82,2.12]
[1733898082843,2.12,218.95,218.84,2.2837]
[1733898083045,7.03302126,218.88,218.82,2.12]
[1733898083536,7.03302126,218.88,218.84,2.2837]
[1733898084242,2.2829,218.92,218.82,2.12]
[1733898084447,7.03302126,218.87,218.85,2.2836]
[1733898087249,2.2828,218.93,218.85,2.2836]
[1733898087250,7.03302126,218.89,218.85,2.2836]
[1733898088446,7.03302126,218.89,218.83,7.03302126]
[1733898089346,2.2828,218.93,218.85,7.03302126]
[1733898089347,7.03302126,218.93,218.85,7.03302126]
[1733898090744,7.03302126,218.93,218.9,2.283]
[1733898090945,7.03302126,218.93,218.91,2.12]
[1733898092547,1.3736,219.01,218.91,2.12]
[1733898092752,7.03302126,218.97,218.91,9.15302126]
[1733898092954,1.3736,219.01,218.93,7.03302126]
[1733898093248,1.3736,219.01,218.91,2.12]
[1733898093249,8.40662126,219.01,218.95,7.03302126]
[1733898093456,7.03302126,219.01,218.96,2.12]
[1733898093751,2.2814,219.07,218.99,2.2821]
[1733898093944,7.03302126,219.02,218.96,2.12]
[1733898094952,7.03302126,219.02,219.0,2.282]
[1733898095350,7.03302126,219.02,218.96,2.12]
[1733898095553,7.03302126,218.98,218.97,2.12]
[1733898099747,7.03302126,219.0,218.97,2.12]
[1733898100948,7.03302126,219.0,218.97,4.4023]
[1733898103158,7.03302126,219.0,218.97,2.12]
[1733898103360,7.03302126,219.02,218.97,2.12]
[1733898103859,7.03302126,219.04,219.02,2.2818]
[1733898104059,7.03302126,219.04,219.02,4.4018]
[1733898104659,7.03302126,219.04,219.02,2.12]
[1733898107364,2.2818,219.02,218.96,2.2824]
[1733898107656,2.2818,219.02,218.99,2.12]
[1733898107657,7.03302126,219.0,218.99,2.12]
[1733898109365,7.03302126,219.0,218.96,2.12]
[1733898109967,7.03302126,219.0,218.96,4.4024]
[1733898110165,7.03302126,219.0,218.96,2.12]
[1733898110665,7.03302126,219.0,218.98,2.2822]
[1733898110966,7.03302126,219.02,218.96,2.12]
[1733898111163,7.03302126,219.02,219.0,2.282]
[1733898111666,7.03302126,219.02,218.96,9.15302126]
[1733898111862,7.03302126,219.02,218.99,2.2821]
[1733898112263,2.8037,219.06,219.0,2.282]
[1733898112464,7.03302126,219.04,219.0,2.282]
[1733898112768,7.03302126,219.04,219.01,2.12]
[1733898113174,7.03302126,219.04,219.01,4.4019]
[1733898114673,7.03302126,219.04,219.02,2.2818]
[1733898114869,8.39602126,219.06,219.02,2.2818]
[1733898115266,8.39602126,219.06,219.01,2.12]
[1733898115567,7.03302126,219.08,219.04,2.2816]
[1733898116772,2.2809,219.11,219.05,2.2815]
[1733898116967,7.03302126,219.08,219.05,2.2815]
[1733898119272,2.2809,219.12,219.07,2.2813]
[1733898119469,7.03302126,219.09,219.02,9.15302126]
[1733898120068,7.03302126,219.09,219.06,2.2813]
[1733898120475,7.03302126,219.09,219.02,9.15302126]
[1733898120976,9.31412126,219.09,219.04,2.2816]
[1733898121869,7.03302126,219.09,219.07,2.2813]
[1733898122075,7.03302126,219.09,219.02,9.15302126]
[1733898122376,7.03302126,219.09,219.05,2.2814]
[1733898122767,7.03302126,219.09,219.02,9.15302126]
[1733898122768,7.03302126,219.09,219.02,2.12]
[1733898122969,7.03302126,219.09,219.05,2.2815]
[1733898123771,7.03302126,219.09,219.06,2.12]
[1733898124272,1.3964,219.16,219.06,2.12]
[1733898124479,7.03302126,219.1,219.07,2.2813]
[1733898126475,9.31382126,219.12,219.07,2.2813]
[1733898127381,7.03302126,219.1,219.07,2.2813]
[1733898127682,7.03302126,219.1,219.06,4.4014]
[1733898127872,7.03302126,219.1,219.06,2.12]
[1733898128272,9.31402126,219.1,219.06,2.12]
[1733898128879,9.31402126,219.1,219.05,2.2815]
[1733898129080,7.03302126,219.08,218.89,4.5663]
[1733898129279,7.03302126,219.08,219.02,2.2818]
[1733898129475,7.03302126,219.08,219.03,2.12]
[1733898129674,9.31422126,219.08,219.03,2.12]
[1733898130474,7.03302126,219.08,219.03,4.4016]
[1733898131882,1.3964,219.16,219.03,4.4016]
[1733898132080,7.03302126,219.09,219.03,4.4016]
[1733898132383,9.31422126,219.09,219.03,11.43462126]
[1733898132985,2.281,219.1,219.05,2.2815]
[1733898134484,7.03302126,219.11,219.06,2.2814]
[1733898134687,1.3785,219.18,219.03,9.15302126]
[1733898134688,190.11517548,219.24,219.09,7.03302126]
[1733898134887,7.03302126,219.18,219.11,7.03302126]
[1733898135082,7.03302126,219.18,219.1,2.12]
[1733898135083,12.87027187,219.17,219.13,7.03302126]
[1733898135387,9.31302126,219.2,219.13,7.03302126]
[1733898135582,31.20846657,219.19,219.13,7.03302126]
[1733898135782,12.86770189,219.18,219.13,7.03302126]
[1733898135988,9.31302126,219.2,219.13,7.03302126]
[1733898136286,22.4340291,219.19,219.13,7.03302126]
[1733898136480,9.31302126,219.2,219.13,7.03302126]
[1733898136481,12.86750887,219.18,219.13,7.03302126]
[1733898136678,2.28,219.2,219.14,2.2805]
[1733898136879,2.28,219.2,219.15,2.12]
[1733898137489,2.2794,219.26,219.19,7.03302126]
[1733898137691,12.85880072,219.25,219.2,2.12]
[1733898137885,7.03302126,219.26,219.2,2.12]
[1733898138083,7.03302126,219.28,219.21,7.03302126]
[1733898138387,12.84822296,219.27,219.21,7.03302126]
[1733898138580,7.03302126,219.28,219.21,7.03302126]
[1733898138786,12.84873784,219.27,219.21,7.03302126]
[1733898138986,7.03302126,219.28,219.21,7.03302126]
[1733898139188,9.31232126,219.26,219.11,2.2808]
[1733898139488,2.7285,219.3,219.17,7.03302126]
[1733898139489,7.03302126,219.24,219.17,7.03302126]
[1733898139787,2.2796,219.24,219.18,2.12]
[1733898140091,7.03302126,219.23,219.18,2.12]
[1733898141287,2.2796,219.24,219.18,2.12]
[1733898141486,7.03302126,219.23,219.18,2.12]
[1733898141793,2.2796,219.24,219.18,2.12]
[1733898142093,7.03302126,219.23,219.18,2.12]
[1733898142391,7.03302126,219.25,219.18,2.12]
[1733898142684,2.7285,219.3,219.22,2.2797]
[1733898142892,7.03302126,219.28,219.23,2.12]
[1733898143484,7.03302126,219.28,219.23,4.3996]
[1733898144287,1.4394,219.4,219.23,9.15302126]
[1733898144484,1.4394,219.4,219.25,7.03302126]
[1733898144485,7.03302126,219.31,219.25,7.03302126]
[1733898145591,7.03302126,219.31,219.26,2.2793]
[1733898145791,2.2787,219.32,219.26,2.2793]
[1733898146784,7.03302126,219.33,219.27,7.03302126]
[1733898146990,7.03302126,219.33,219.28,2.12]
[1733898147186,1.3565,219.35,219.29,7.03302126]
[1733898147391,7.03302126,219.38,219.31,9.31182126]
[1733898147792,2.2782,219.37,219.31,9.31182126]
[1733898148187,7.03302126,219.38,219.31,7.03302126]
[1733898149093,2.2781,219.39,219.33,7.03302126]
[1733898149293,2.2781,219.39,219.34,2.12]
[1733898149597,2.2781,219.39,219.35,2.12]
[1733898150589,2.2781,219.38,219.35,2.12]
[1733898151598,2.278,219.39,219.35,2.12]
[1733898151996,2.8671,219.44,219.35,2.12]
[1733898153495,2.2778,219.42,219.36,2.2782]
[1733898153702,2.8671,219.44,219.36,2.2782]
[1733898153898,2.2778,219.41,219.35,2.12]
[1733898154202,2.8671,219.44,219.35,2.12]
[1733898155396,2.2783,219.36,219.32,10.97512018]
[1733898155598,2.2783,219.36,219.33,2.12]
[1733898157503,2.2782,219.38,219.33,2.12]
[1733898159001,2.2782,219.37,219.33,2.12]
[1733898160406,10.97512018,219.43,219.33,2.12]
[1733898161107,2.2781,219.38,219.33,2.12]
[1733898162110,2.2781,219.38,219.34,2.12]
[1733898162306,2.2782,219.37,219.34,2.12]
[1733898166312,2.2782,219.37,219.35,2.12]
[1733898167214,10.97512018,219.4,219.29,10.97512018]
[1733898167407,10.97512018,219.4,219.3,2.12]
[1733898167608,10.97512018,219.4,219.31,2.12]
[1733898167811,2.8671,219.44,219.31,2.12]
[1733898167812,10.97512018,219.43,219.31,2.12]
[1733898168614,2.2781,219.38,219.33,2.2786]
[1733898169215,2.2781,219.38,219.34,7.02371764]
[1733898170719,2.2782,219.37,219.34,7.02371764]
[1733898171017,7.02371764,219.41,219.34,7.02371764]
[1733898171519,7.02371764,219.41,219.35,2.12]
[1733898171819,2.278,219.39,219.35,4.3984]
[1733898172016,2.278,219.39,219.36,7.02371764]
[1733898172409,7.02371764,219.43,219.35,4.3984]
[1733898172410,2.8671,219.44,219.35,2.12]
[1733898172622,2.8671,219.44,219.38,9.30181764]
[1733898173121,7.02371764,219.48,219.4,7.02371764]
[1733898173316,7.02371764,219.48,219.41,2.12]
[1733898174519,2.2775,219.44,219.41,2.12]
[1733898175614,7.02371764,219.48,219.41,2.12]
[1733898175820,7.02371764,219.46,219.41,2.12]
[1733898176716,2.2777,219.42,219.41,2.12]
[1733898177411,2.2777,219.42,219.38,7.02371764]
[1733898177616,2.278,219.4,219.34,2.2785]
[1733898177815,7.02371764,219.44,219.36,7.02371764]
[1733898178216,12.80192481,219.43,219.36,7.02371764]
[1733898178419,7.02371764,219.44,219.36,7.02371764]
[1733898178720,2.2779,219.4,219.36,7.02371764]
[1733898179111,7.02371764,219.4,219.37,2.12]
[1733898179316,7.02371764,219.4,219.36,2.12]
[1733898180322,2.2782,219.37,219.36,2.12]
[1733898182522,2.2782,219.37,219.35,2.12]
[1733898183425,2.2783,219.36,219.34,2.12]
[1733898186724,2.2784,219.35,219.34,2.12]
[1733898189020,15.16274064,219.35,219.34,2.12]
[1733898192218,2.2784,219.35,219.34,2.12]
[1733898194625,7.02371764,219.36,219.25,1.3902]
[1733898194824,7.02371764,219.34,219.27,9.30291764]
[1733898195019,12.90567879,219.33,219.27,9.30291764]
[1733898195421,12.90567879,219.33,219.28,2.12]
[1733898195826,2.279,219.29,219.28,2.12]
[1733898196223,7.02371764,219.3,219.2,1.3757]
[1733898196532,2.2793,219.27,219.23,7.02371764]
[1733898196826,7.02371764,219.3,219.23,7.02371764]
[1733898197028,12.90312788,219.29,219.23,7.02371764]
[1733898197225,12.90312788,219.28,219.23,7.02371764]
[1733898197423,7.02371764,219.3,219.23,7.02371764]
[1733898197625,22.48674413,219.29,219.23,7.02371764]
[1733898197824,7.02371764,219.3,219.23,7.02371764]
[1733898197825,12.89669603,219.28,219.23,7.02371764]
[1733898198029,7.02371764,219.3,219.23,7.02371764]
[1733898198228,12.89673173,219.29,219.25,9.30311764]
[1733898198430,7.02371764,219.33,219.26,2.12]
[1733898198728,12.88944379,219.32,219.26,2.12]
[1733898198924,2.2788,219.32,219.26,4.3993]
[1733898199129,7.02371764,219.33,219.26,4.3993]
[1733898199323,12.88717451,219.32,219.26,2.12]
[1733898199521,2.2784,219.35,219.29,9.30261764]
[1733898199725,12.88649264,219.34,219.29,9.30261764]
[1733898199931,1.4299,219.36,219.29,9.30261764]
[1733898200129,12.88600612,219.35,219.29,9.30261764]
[1733898200329,1.4299,219.36,219.29,9.30261764]
[1733898200729,2.2785,219.34,219.29,9.30261764]
[1733898201430,2.2785,219.34,219.3,7.02371764]
[1733898201630,2.2785,219.34,219.31,2.12]
[1733898202225,2.12,219.41,219.32,7.02371764]
[1733898202427,7.02371764,219.39,219.32,7.02371764]
[1733898202628,22.46602307,219.38,219.32,7.02371764]
[1733898202924,29.48984529,219.37,219.31,2.12]
[1733898203130,30.98165165,219.36,219.2,1.3757]
[1733898203329,22.46612765,219.35,219.28,7.02371764]
[1733898203626,7.02371764,219.33,219.28,2.12]
[1733898203824,12.8848487,219.32,219.28,2.12]
[1733898204024,2.279,219.29,219.28,2.12]
[1733898204933,2.2789,219.31,219.28,2.12]
[1733898205629,2.2787,219.32,219.28,9.14371764]
[1733898205830,7.02371764,219.35,219.28,2.12]
[1733898206130,22.46052902,219.34,219.28,2.12]
[1733898206326,12.88160411,219.33,219.28,2.12]
[1733898206527,12.88160411,219.32,219.28,2.12]
[1733898206722,7.02371764,219.35,219.28,2.12]
[1733898206924,22.45927096,219.34,219.28,2.12]
[1733898207129,12.88095665,219.34,219.28,2.12]
[1733898207333,2.2789,219.31,219.28,2.12]
[1733898207528,7.02371764,219.35,219.28,2.12]
[1733898207726,12.87961928,219.34,219.28,2.12]
[1733898207926,1.4779,219.36,219.28,2.12]
[1733898208229,29.48006355,219.35,219.28,2.12]
[1733898208429,22.45613261,219.34,219.28,2.12]
[1733898208725,2.279,219.29,219.28,2.12]
[1733898209827,2.279,219.29,219.25,7.02371764]
[1733898210021,2.279,219.29,219.26,2.12]
[1733898210226,2.2791,219.28,219.26,2.12]
[1733898213631,7.02371764,219.31,219.26,2.12]
[1733898213632,2.2792,219.27,219.26,2.12]
[1733898215931,2.2795,219.25,219.2,3.6556]
[1733898216130,2.2795,219.25,219.21,9.14371764]
[1733898217132,2.2795,219.25,219.21,7.02371764]
[1733898217429,7.02371764,219.27,219.2,1.3757]
[1733898217634,7.02371764,219.25,219.21,2.12]
[1733898217834,2.2797,219.22,219.21,2.12]
[1733898218032,7.02371764,219.23,219.14,7.02371764]
[1733898218328,7.02371764,219.21,219.14,7.02371764]
[1733898218528,2.2803,219.17,219.15,2.12]
[1733898218728,7.02371764,219.19,219.15,2.12]
[1733898218934,2.2804,219.16,219.15,2.12]
[1733898219137,7.02371764,219.19,219.14,2.12]
[1733898220830,2.2803,219.17,219.14,2.12]
[1733898221932,2.2806,219.14,219.09,2.281]
[1733898222132,2.2806,219.14,219.1,9.14371764]
[1733898222533,2.2806,219.14,219.11,2.12]
[1733898223337,2.2804,219.16,219.11,2.12]
[1733898224832,7.02371764,219.17,219.11,2.12]
[1733898225633,7.02371764,219.17,219.12,2.2807]
[1733898225634,9.30401764,219.17,219.12,2.2807]
[1733898227636,2.2803,219.17,219.12,2.2807]
[1733898227839,2.8034,219.24,219.14,7.02371764]
[1733898228039,7.02371764,219.22,219.14,7.02371764]
[1733898229441,9.30341764,219.22,219.17,2.2802]
[1733898229641,9.30341764,219.22,219.18,2.12]
[1733898231742,7.02371764,219.22,219.18,2.12]
[1733898231943,2.2798,219.21,219.18,2.12]
[1733898234744,2.2798,219.21,219.16,2.2804]
[1733898234937,2.2798,219.21,219.15,7.02371764]
[1733898234938,7.02371764,219.2,219.17,2.12]
[1733898235143,2.2802,219.18,219.17,2.12]
[1733898236545,2.12,219.25,219.17,2.12]
[1733898236747,2.2799,219.21,219.17,2.12]
[1733898237052,7.02371764,219.24,219.17,2.12]
[1733898237243,3.5409,219.28,219.17,2.12]
[1733898237440,2.2796,219.24,219.19,2.28]
[1733898238148,2.2797,219.23,219.18,2.2801]
[1733898240244,2.2797,219.22,219.18,2.2801]
[1733898240450,7.02371764,219.23,219.17,2.12]
[1733898241048,7.02371764,219.21,219.17,2.12]
[1733898241448,1.4209,219.28,219.08,1.4651]
[1733898241449,7.02371764,219.19,219.08,1.4651]
[1733898241754,7.02371764,219.16,219.09,9.14371764]
[1733898242452,7.02371764,219.16,219.09,2.12]
[1733898242647,2.2806,219.14,219.09,11.42471764]
[1733898243552,2.2807,219.13,219.09,2.12]
[1733898244355,7.02371764,219.19,219.12,7.02371764]
[1733898245158,2.2803,219.17,219.12,9.30441764]
[1733898245658,2.2802,219.18,219.12,9.30441764]
[1733898247459,2.12,219.25,219.13,2.2806]
[1733898247460,9.30381764,219.19,219.13,2.2806]
[1733898247663,1.4209,219.28,219.14,9.14371764]
[1733898247664,7.02371764,219.21,219.14,9.14371764]
[1733898247855,7.02371764,219.21,219.15,2.12]
[1733898249556,2.28,219.2,219.15,4.4005]
[1733898249864,7.02371764,219.21,219.15,2.12]
[1733898250265,9.30361764,219.21,219.15,4.4004]
[1733898251159,7.02371764,219.21,219.15,4.4004]
[1733898251359,2.28,219.2,219.15,4.4004]
[1733898252271,2.2802,219.18,219.15,2.12]
[1733898254461,2.2802,219.18,219.16,2.12]
[1733898257371,7.02371764,219.17,219.08,1.4651]
[1733898257568,7.02371764,219.15,219.09,2.12]
[1733898257773,7.02371764,219.15,219.1,2.12]
[1733898258665,2.2807,219.13,219.1,2.12]
[1733898259875,2.2807,219.13,219.09,2.2811]
[1733898260074,2.2807,219.13,219.1,2.12]
[1733898261875,7.02371764,219.15,219.08,7.02371764]
[1733898262079,7.02371764,219.13,219.09,2.12]
[1733898264471,2.2811,219.11,219.09,2.12]
[1733898265075,2.281,219.12,219.09,2.12]
[1733898265385,7.02371764,219.16,219.09,2.12]
[1733898265677,12.90020718,219.15,219.09,2.12]
[1733898265881,7.02371764,219.16,219.09,2.12]
[1733898266072,12.90035696,219.15,219.09,2.12]
[1733898266271,7.02371764,219.16,219.09,2.12]
[1733898266472,12.89899866,219.15,219.09,2.12]
[1733898266680,7.02371764,219.16,219.09,2.12]
[1733898269482,2.2807,219.15,219.1,7.02371764]
[1733898269984,2.2807,219.15,219.09,2.12]
[1733898270486,7.02371764,219.16,219.09,9.14371764]
[1733898270687,2.2808,219.14,219.09,11.42501764]
[1733898274690,7.02371764,219.16,219.09,9.14371764]
[1733898274892,2.2809,219.13,219.09,9.14371764]
[1733898275586,7.02371764,219.16,219.09,2.12]
[1733898275787,2.281,219.12,219.09,2.12]
[1733898276191,2.281,219.12,219.08,7.02371764]
[1733898276387,2.281,219.12,219.1,2.12]
[1733898277095,2.2809,219.13,219.1,2.12]
[1733898279595,7.02371764,219.16,219.1,2.12]
[1733898279596,2.281,219.12,219.1,2.12]
[1733898285397,2.2809,219.13,219.1,2.12]
[1733898287405,2.2811,219.11,219.1,2.12]
[1733898288500,7.02371764,219.12,218.99,1.4186]
[1733898288703,7.02371764,219.1,219.02,7.02371764]
[1733898288899,2.12,219.18,219.02,7.02371764]
[1733898288900,7.02371764,219.08,219.02,7.02371764]
[1733898289301,7.02371764,219.1,219.02,7.02371764]
[1733898289499,12.90213152,219.09,219.02,7.02371764]
[1733898289707,2.2815,219.08,219.03,4.4019]
[1733898291505,7.02371764,219.1,219.03,2.12]
[1733898291711,12.89747992,219.09,219.03,2.12]
[1733898292012,7.02371764,219.1,219.04,2.12]
[1733898292205,12.89752901,219.09,219.04,2.12]
[1733898292407,7.02371764,219.1,219.04,2.12]
[1733898292607,12.89504044,219.09,219.04,2.12]
[1733898292907,7.02371764,219.12,219.05,2.2817]
[1733898293109,190.11517548,219.17,219.06,7.02371764]
[1733898293110,12.89474938,219.11,219.06,7.02371764]
[1733898293310,7.02371764,219.13,219.06,7.02371764]
[1733898293512,22.4829338,219.12,219.06,7.02371764]
[1733898293709,7.02371764,219.13,219.06,7.02371764]
[1733898294015,12.89557914,219.12,219.07,2.2815]
[1733898294216,7.02371764,219.13,219.07,2.2815]
[1733898294417,12.8951921,219.12,219.07,2.2815]
[1733898294614,2.2811,219.11,219.07,2.2815]
[1733898295020,7.02371764,219.13,219.08,2.2814]
[1733898295221,7.02371764,219.13,219.09,2.12]
[1733898296719,2.281,219.12,219.09,2.12]
[1733898297113,2.281,219.12,219.08,2.2814]
[1733898297317,2.281,219.12,219.09,2.12]
[1733898299421,2.2809,219.14,219.09,2.12]
[1733898299725,22.50919898,219.13,219.07,7.02371764]
[1733898299921,12.90949476,219.12,219.1,2.12]
[1733898300123,7.02371764,219.15,219.1,2.12]
[1733898300324,2.2811,219.11,219.1,2.12]
[1733898300719,18.90472736,219.11,219.1,2.12]
[1733898300923,31.81427546,219.11,219.1,2.12]
[1733898301123,24.79055782,219.11,219.1,2.12]
[1733898301719,2.2813,219.09,219.07,2.12]
[1733898302219,2.2814,219.08,219.07,2.12]
[1733898302523,15.19694565,219.08,219.07,2.12]
[1733898302724,2.2815,219.07,219.03,7.02371764]
[1733898302924,7.02371764,219.09,219.05,2.12]
[1733898303122,12.91581108,219.08,219.05,2.12]
[1733898303319,7.02371764,219.09,219.05,2.12]
[1733898303523,12.91362455,219.08,219.05,2.12]
[1733898303723,7.02371764,219.09,219.05,2.12]
[1733898303917,12.91363136,219.08,219.05,2.12]
[1733898304117,7.02371764,219.09,219.05,2.12]
[1733898304329,2.2816,219.07,219.05,2.12]
[1733898305530,7.02371764,219.09,219.05,2.12]
[1733898305725,2.2814,219.09,219.05,2.12]
[1733898305931,7.02371764,219.13,219.06,2.2816]
[1733898306230,22.50909729,219.12,219.06,2.2816]
[1733898306430,12.9094288,219.11,219.06,2.2816]
[1733898306731,7.02371764,219.13,219.06,2.2816]
[1733898306933,22.50900377,219.12,219.06,2.2816]
[1733898307128,12.90937708,219.11,219.06,2.2816]
[1733898307433,2.2812,219.11,219.06,2.2816]
[1733898309431,1.4135,219.2,219.07,9.30521764]
[1733898309634,7.02371764,219.18,219.11,7.02371764]
[1733898309936,31.04378932,219.17,219.12,2.12]
[1733898310135,31.04378932,219.16,219.12,2.12]
[1733898310332,1.4135,219.2,219.13,7.02371764]
[1733898310530,22.50561358,219.19,219.13,7.02371764]
[1733898310737,12.90745905,219.18,219.13,7.02371764]
[1733898310937,1.4135,219.2,219.13,7.02371764]
[1733898311235,12.90673402,219.19,219.13,7.02371764]
[1733898311532,1.4135,219.2,219.13,7.02371764]
[1733898311738,15.18311793,219.19,219.13,7.02371764]
[1733898311936,2.2804,219.19,219.14,2.12]
[1733898314034,1.4684,219.26,219.17,7.02371764]